bitfinex-derivatives/quotes_ETHF0:USTF0_20260123
["timestamp","ask_amount","ask_price","bid_price","bid_amount"]
[1769126577824,0.94424614,2952.8,2951.6,0.15282332]
[1769126578028,0.94424614,2952.7,2951.6,0.15282332]
[1769126578229,0.94424614,2952.6,2951.6,0.15282332]
[1769126578430,0.16948,2953.1,2951.6,0.15282332]
[1769126578633,1.26542614,2953.0,2951.6,0.15282332]
[1769126578836,0.94423553,2952.9,2951.6,0.15282332]
[1769126579037,0.94423553,2952.8,2951.6,0.15282332]
[1769126579242,0.94423553,2952.7,2951.6,0.15282332]
[1769126579538,2.4335492,2953.4,2951.6,0.15282332]
[1769126579839,1.26541017,2953.3,2951.6,0.15282332]
[1769126580139,1.26541017,2953.2,2951.6,0.15282332]
[1769126580338,1.26541017,2953.1,2951.6,0.15282332]
[1769126580530,1.26541017,2953.0,2951.6,0.15282332]
[1769126580734,0.94422364,2952.9,2951.6,0.15282332]
[1769126581033,0.94422364,2952.8,2951.6,0.15282332]
[1769126581238,0.94422364,2952.7,2951.6,0.15282332]
[1769126581425,2.57436176,2953.5,2951.7,0.14774769]
[1769126581633,1.26529483,2953.4,2952.0,0.14227309]
[1769126581834,0.94410793,2953.3,2952.2,0.14227309]
[1769126582033,0.94410793,2953.2,2952.2,0.14227309]
[1769126582239,0.00369806,2953.5,2952.2,0.14227309]
[1769126582442,0.94347105,2953.4,2952.2,0.14227309]
[1769126582741,0.94347105,2953.4,2951.6,0.00507563]
[1769126582742,0.94347105,2953.3,2951.7,0.14227309]
[1769126582934,0.14373777,2953.4,2951.7,0.14227309]
[1769126582935,0.94347105,2953.2,2951.7,0.14227309]
[1769126583136,0.94347105,2953.1,2951.7,0.14227309]
[1769126583340,0.14373777,2953.4,2951.7,0.14227309]
[1769126583641,0.94197488,2953.3,2951.7,0.14227309]
[1769126583838,0.94197488,2953.2,2951.7,0.14227309]
[1769126584039,0.94197488,2953.1,2951.7,0.14227309]
[1769126584340,0.14373777,2953.4,2951.7,0.14227309]
[1769126584542,0.94174296,2953.3,2951.7,0.14227309]
[1769126584741,0.94174296,2953.2,2951.7,0.14227309]
[1769126584941,0.94174296,2953.1,2951.7,0.14227309]
[1769126585243,0.14373777,2953.4,2951.7,0.14227309]
[1769126585444,0.94154634,2953.3,2951.7,0.14227309]
[1769126585740,0.14373777,2953.4,2951.7,0.14227309]
[1769126585741,0.94154634,2953.2,2951.7,0.14227309]
[1769126585941,0.94154634,2953.1,2951.7,0.14227309]
[1769126586137,0.14373777,2953.4,2951.7,0.14227309]
[1769126586338,0.13475579,2953.2,2951.7,0.14227309]
[1769126586539,0.94138377,2953.1,2951.7,0.14227309]
[1769126587144,1.07613956,2953.1,2951.7,0.14227309]
[1769126587343,0.94138377,2953.0,2951.7,0.14227309]
[1769126588839,0.94138377,2952.9,2951.7,0.14227309]
[1769126589038,0.30422579,2953.4,2951.7,0.14227309]
[1769126589240,1.26181799,2953.3,2951.7,0.14227309]
[1769126589445,1.26181799,2953.2,2951.7,0.14227309]
[1769126589645,0.94114918,2953.1,2951.7,0.14227309]
[1769126589945,0.94114918,2953.0,2951.7,0.14227309]
[1769126590245,0.94114918,2952.9,2951.7,0.14227309]
[1769126590447,0.13475579,2953.3,2951.7,0.14227309]
[1769126590636,1.2620293,2953.2,2951.7,0.14227309]
[1769126590841,0.94129835,2953.1,2951.7,0.14227309]
[1769126591144,0.94129835,2953.0,2951.7,0.14227309]
[1769126591344,0.94129835,2952.9,2951.7,0.14227309]
[1769126591547,0.13475579,2953.2,2951.7,0.14227309]
[1769126591735,0.00369806,2953.5,2951.6,0.17463563]
[1769126591736,0.13475579,2953.0,2951.6,0.00507563]
[1769126591946,1.39704281,2952.9,2951.6,0.00507563]
[1769126592246,1.26228702,2952.8,2951.6,0.00507563]
[1769126592447,0.94149052,2952.7,2951.6,0.00507563]
[1769126592635,0.94149052,2952.6,2951.6,0.00507563]
[1769126592841,0.94149052,2952.5,2951.6,0.00507563]
[1769126593036,0.13475579,2952.9,2951.6,0.00507563]
[1769126593346,1.39765728,2952.8,2951.6,0.00507563]
[1769126593642,3.04563466,2953.5,2950.5,0.16963]
[1769126593643,0.13475579,2952.5,2950.5,0.16963]
[1769126593848,1.39775694,2952.4,2950.5,0.31356633]
[1769126594048,0.94196726,2952.3,2950.5,0.31356633]
[1769126594246,0.94196726,2952.3,2950.8,0.14393633]
[1769126594445,0.94196726,2952.3,2950.9,0.14654245]
[1769126594952,0.94196726,2952.3,2951.3,0.00507563]
[1769126595750,0.94196726,2952.2,2951.3,0.00507563]
[1769126595948,0.94196726,2952.1,2951.3,0.00507563]
[1769126596149,0.16951,2952.6,2951.3,0.00507563]
[1769126596343,1.26424802,2952.5,2951.3,0.00507563]
[1769126596542,1.26424802,2952.4,2951.3,0.00507563]
[1769126596744,1.26424802,2952.3,2951.3,0.00507563]
[1769126596949,0.94294645,2952.2,2951.3,0.00507563]
[1769126597150,0.94294645,2952.1,2951.3,0.00507563]
[1769126597346,0.16951,2952.6,2951.3,0.00507563]
[1769126597649,1.26467143,2952.5,2951.3,0.00507563]
[1769126597847,0.94326225,2952.4,2951.3,0.14901196]
[1769126598042,5.77972159,2953.2,2951.3,0.14901196]
[1769126598244,1.26466501,2953.1,2951.3,0.14901196]
[1769126598448,1.26466501,2953.0,2951.3,0.14901196]
[1769126598650,1.26466501,2952.9,2951.3,0.14901196]
[1769126598847,0.30423579,2953.2,2951.3,0.14901196]
[1769126598848,1.26466501,2952.8,2951.3,0.14901196]
[1769126599152,0.94327772,2952.7,2951.4,0.14393633]
[1769126599454,0.94327772,2952.6,2951.4,0.14393633]
[1769126599649,0.30423579,2953.2,2951.4,0.14393633]
[1769126599852,1.26414654,2953.1,2951.4,0.14393633]
[1769126600041,1.26414654,2953.0,2951.4,0.14393633]
[1769126600248,1.26414654,2952.9,2951.4,0.14393633]
[1769126600446,1.26414654,2952.8,2951.4,0.14393633]
[1769126600647,0.9427219,2952.7,2951.4,0.14393633]
[1769126600848,0.9427219,2952.6,2951.4,0.14393633]
[1769126601147,0.30423579,2953.2,2951.4,0.14393633]
[1769126601348,1.26434452,2953.1,2951.4,0.14393633]
[1769126601549,1.26434452,2953.0,2951.4,0.14393633]
[1769126601749,1.26434452,2952.9,2951.4,0.14393633]
[1769126601951,1.26434452,2952.8,2951.4,0.14393633]
[1769126602151,0.94286954,2952.7,2951.4,0.14393633]
[1769126602353,0.94286954,2952.6,2951.4,0.14393633]
[1769126602548,0.30423579,2953.2,2951.4,0.14393633]
[1769126602749,1.26457889,2953.1,2951.4,0.14393633]
[1769126602954,1.26457889,2953.0,2951.4,0.14393633]
[1769126603149,1.26457889,2952.9,2951.4,0.14393633]
[1769126603355,1.26457889,2952.8,2951.4,0.14393633]
[1769126603557,0.9430443,2952.7,2951.4,0.14393633]
[1769126603756,0.9430443,2952.6,2951.4,0.14393633]
[1769126603950,0.30423579,2953.2,2951.4,0.14393633]
[1769126604151,1.26484655,2953.1,2951.4,0.14393633]
[1769126604352,1.26484655,2953.0,2951.4,0.14393633]
[1769126604559,1.26484655,2952.9,2951.4,0.14393633]
[1769126604857,1.26484655,2952.8,2951.4,0.14393633]
[1769126605156,0.30423579,2953.2,2951.4,0.14393633]
[1769126605157,0.9432439,2952.7,2951.4,0.14393633]
[1769126605350,0.9432439,2952.6,2951.4,0.14393633]
[1769126605548,0.30423579,2953.2,2951.4,0.14393633]
[1769126605750,1.26498687,2953.1,2951.4,0.14393633]
[1769126605951,1.26498687,2953.0,2951.4,0.14393633]
[1769126606159,1.26498687,2952.9,2951.4,0.14393633]
[1769126606358,1.26498687,2952.8,2951.4,0.14393633]
[1769126606560,0.94334911,2952.7,2951.4,0.14393633]
[1769126606762,0.94334911,2952.6,2951.4,0.14393633]
[1769126606961,0.30423579,2953.2,2951.4,0.14393633]
[1769126607263,1.26498734,2953.1,2951.4,0.14393633]
[1769126607462,1.26498734,2953.0,2951.4,0.14393633]
[1769126607655,1.26498734,2952.9,2951.4,0.14393633]
[1769126607850,1.26498734,2952.8,2951.4,0.14393633]
[1769126608055,0.94334948,2952.7,2951.4,0.14393633]
[1769126608254,0.94334948,2952.6,2951.4,0.14393633]
[1769126608462,0.30423579,2953.2,2951.4,0.14393633]
[1769126608661,1.26500087,2953.1,2951.4,0.14393633]
[1769126608862,1.26500087,2953.0,2951.4,0.14393633]
[1769126609063,1.26500087,2952.9,2951.4,0.14393633]
[1769126609261,1.26500087,2952.8,2951.4,0.14393633]
[1769126609462,0.94335957,2952.7,2951.4,0.14393633]
[1769126609761,0.30423579,2953.2,2951.4,0.14393633]
[1769126609762,0.94335957,2952.6,2951.4,0.14393633]
[1769126609951,0.30423579,2953.2,2951.4,0.14393633]
[1769126610156,1.26501136,2953.1,2951.4,0.14393633]
[1769126610359,1.26501136,2953.0,2951.4,0.14393633]
[1769126610554,1.26501136,2952.9,2951.4,0.14393633]
[1769126610759,1.26501136,2952.8,2951.4,0.14393633]
[1769126610958,0.94336739,2952.7,2951.5,0.14393633]
[1769126611157,0.94336739,2952.6,2951.5,0.14393633]
[1769126611360,0.30423579,2953.2,2951.5,0.14393633]
[1769126611562,1.26508971,2953.1,2951.5,0.14393633]
[1769126611761,1.26508971,2953.0,2951.5,0.14393633]
[1769126611959,1.26508971,2952.9,2951.5,0.14393633]
[1769126612158,1.26508971,2952.8,2951.5,0.14393633]
[1769126612453,0.94342582,2952.7,2951.5,0.14393633]
[1769126612657,0.94342582,2952.6,2951.5,0.14393633]
[1769126612853,0.30423579,2953.2,2951.5,0.14393633]
[1769126613057,1.26522282,2953.1,2951.5,0.14393633]
[1769126613257,1.26522282,2953.0,2951.5,0.14393633]
[1769126613454,1.26522282,2952.9,2951.5,0.14393633]
[1769126613653,1.26522874,2952.8,2951.5,0.14393633]
[1769126613858,0.30423579,2953.2,2951.5,0.14393633]
[1769126613859,0.94350602,2952.7,2951.5,0.14393633]
[1769126614059,0.94350602,2952.6,2951.5,0.14393633]
[1769126614256,0.14444157,2953.1,2951.5,0.14393633]
[1769126614456,1.26505274,2953.0,2951.5,0.14393633]
[1769126614664,1.26505274,2952.9,2951.5,0.14393633]
[1769126614866,1.26505274,2952.8,2951.5,0.14393633]
[1769126615062,1.26505274,2952.7,2951.5,0.14393633]
[1769126615267,0.94339835,2952.6,2951.5,0.14393633]
[1769126615466,0.94339835,2952.5,2951.5,0.14393633]
[1769126615668,0.14444157,2953.1,2951.5,3.66593633]
[1769126615967,1.26518972,2953.0,2951.6,3.522]
[1769126616166,1.26518972,2952.9,2951.6,3.522]
[1769126616466,1.26518972,2952.8,2951.6,3.522]
[1769126616669,1.26518972,2952.7,2951.6,3.522]
[1769126616865,0.94350043,2952.6,2951.6,3.522]
[1769126617066,0.94350043,2952.5,2951.6,3.522]
[1769126617265,0.14444157,2953.1,2951.6,3.522]
[1769126617466,1.26565243,2953.0,2951.6,3.522]
[1769126617667,1.26565243,2952.9,2951.6,3.522]
[1769126617977,1.26565243,2952.8,2951.6,3.522]
[1769126618169,1.26565243,2952.7,2951.6,3.522]
[1769126618472,0.94384584,2952.6,2951.6,3.522]
[1769126618676,0.94384584,2952.5,2951.6,3.522]
[1769126618873,0.14444157,2953.1,2951.6,3.522]
[1769126619181,1.26579559,2953.0,2951.5,0.14393633]
[1769126619372,1.26579559,2952.9,2951.5,0.14393633]
[1769126619575,1.26579559,2952.8,2951.5,0.14393633]
[1769126619768,1.26579559,2952.7,2951.5,0.14393633]
[1769126619965,0.94398403,2952.6,2951.5,0.14393633]
[1769126620169,0.94398403,2952.5,2951.5,0.14393633]
[1769126620371,0.14444157,2953.1,2951.5,0.14393633]
[1769126620571,1.2659115,2953.0,2951.5,0.14393633]
[1769126620767,1.2659115,2952.9,2951.5,0.14393633]
[1769126620967,1.2659115,2952.8,2951.5,0.14393633]
[1769126621165,1.2659115,2952.7,2951.5,0.14393633]
[1769126621375,0.94407027,2952.6,2951.5,0.14393633]
[1769126621575,0.94407027,2952.5,2951.5,0.14393633]
[1769126621776,0.14444157,2952.9,2951.5,0.14393633]
[1769126621977,1.2659594,2952.8,2951.5,0.14393633]
[1769126622181,1.2659594,2952.7,2951.5,0.14393633]
[1769126622373,0.94410592,2952.6,2951.5,0.14393633]
[1769126622674,0.94410592,2952.5,2951.5,0.14393633]
[1769126622874,0.14444157,2952.9,2951.5,0.14393633]
[1769126623080,1.26597099,2952.8,2951.5,0.14393633]
[1769126623272,1.26597099,2952.7,2951.5,0.14393633]
[1769126623474,0.94411458,2952.6,2951.5,0.14393633]
[1769126623681,0.14444157,2952.9,2951.5,0.14393633]
[1769126623682,0.94411458,2952.5,2951.5,0.14393633]
[1769126623980,0.14444157,2952.9,2951.5,0.14393633]
[1769126624179,1.26598641,2952.8,2951.5,0.14393633]
[1769126624381,1.26598641,2952.7,2951.5,0.14393633]
[1769126624583,0.94412609,2952.6,2951.5,0.14393633]
[1769126624882,0.94412609,2952.5,2951.5,0.14393633]
[1769126625180,0.94461253,2952.4,2951.5,0.14393633]
[1769126625382,0.14444157,2952.9,2951.5,0.14393633]
[1769126625583,1.26663901,2952.8,2951.5,0.14393633]
[1769126625784,1.26663901,2952.7,2951.5,0.14393633]
[1769126626083,1.26663901,2952.6,2951.5,0.14393633]
[1769126626388,0.94461278,2952.5,2951.5,0.14393633]
[1769126626681,0.14444157,2952.9,2951.5,0.14393633]
[1769126626682,0.94461278,2952.4,2951.5,0.14393633]
[1769126626878,0.14444157,2952.9,2951.5,0.14393633]
[1769126627187,1.26714998,2952.8,2951.5,0.14393633]
[1769126627384,1.26740308,2952.7,2951.5,0.14393633]
[1769126627581,1.26740308,2952.6,2951.5,0.14393633]
[1769126627782,1.26740308,2952.5,2951.5,0.14393633]
[1769126627985,0.14444157,2952.9,2951.3,0.00507563]
[1769126627986,1.2673898,2952.4,2951.3,0.00507563]
[1769126628184,1.2673898,2952.3,2951.3,0.00507563]
[1769126628384,1.2673898,2952.3,2950.9,0.17220612]
[1769126628385,0.14444157,2952.1,2950.9,0.00260612]
[1769126628677,1.2673898,2952.0,2950.9,0.00260612]
[1769126628982,1.2673898,2951.9,2950.9,1.244355]
[1769126629288,0.9449934,2951.8,2950.9,1.244355]
[1769126629485,0.9449934,2951.7,2951.1,1.24174888]
[1769126629789,0.1495172,2952.1,2951.1,1.24174888]
[1769126630086,1.26622585,2952.0,2951.1,1.24174888]
[1769126630282,1.26622585,2951.9,2951.1,1.24174888]
[1769126630482,0.94429711,2951.8,2951.1,1.24174888]
[1769126630688,0.94429711,2951.7,2951.1,1.24174888]
[1769126630883,0.1495172,2952.1,2951.1,1.24174888]
[1769126631081,1.26571624,2952.0,2951.1,1.24174888]
[1769126631280,0.1495172,2952.1,2951.1,1.24174888]
[1769126631281,0.94391666,2951.9,2951.1,1.24174888]
[1769126631581,0.94391666,2951.8,2951.1,1.24174888]
[1769126631789,0.1495172,2952.1,2951.1,1.24174888]
[1769126631983,1.26528008,2952.0,2951.1,1.24174888]
[1769126632186,0.94359073,2951.9,2951.1,1.24174888]
[1769126632385,0.94359073,2951.8,2951.1,1.24174888]
[1769126632579,0.1495172,2952.1,2951.1,1.24174888]
[1769126632779,1.26488226,2952.0,2951.1,1.24174888]
[1769126632988,0.9432943,2951.9,2951.1,1.24174888]
[1769126633180,0.9432943,2951.8,2951.1,1.24174888]
[1769126633388,0.1495172,2952.1,2951.1,1.24174888]
[1769126633589,1.26455511,2952.0,2951.1,1.24174888]
[1769126633791,0.1495172,2952.1,2951.1,1.24174888]
[1769126633792,0.94305026,2951.9,2951.1,1.24174888]
[1769126633983,0.94305026,2951.8,2951.1,1.24174888]
[1769126634191,0.1495172,2952.1,2951.1,1.24174888]
[1769126634387,1.26426268,2952.0,2950.9,1.244355]
[1769126634582,0.94283106,2951.9,2950.9,1.244355]
[1769126634783,0.94283106,2951.8,2950.9,1.244355]
[1769126634985,0.1495172,2952.1,2950.9,1.244355]
[1769126635291,1.26425978,2952.0,2950.9,1.244355]
[1769126635492,0.9428289,2951.9,2950.9,1.244355]
[1769126635691,0.9428289,2951.8,2950.9,1.244355]
[1769126635894,0.1495172,2952.1,2950.9,1.244355]
[1769126636093,1.26400637,2952.0,2950.9,1.244355]
[1769126636295,0.94263983,2951.9,2950.9,1.244355]
[1769126636589,0.94263983,2951.8,2950.9,1.244355]
[1769126636782,0.1495172,2952.1,2950.9,1.244355]
[1769126636983,1.26380009,2952.0,2950.9,1.244355]
[1769126637186,0.94248592,2951.9,2950.9,1.244355]
[1769126637379,0.94248592,2951.8,2950.9,1.244355]
[1769126637589,0.1495172,2952.1,2950.9,1.244355]
[1769126637790,2.64983683,2952.0,2950.9,0.00260612]
[1769126637985,0.14444157,2951.8,2950.9,0.00260612]
[1769126638291,0.94236307,2951.7,2950.9,0.00260612]
[1769126638488,0.14444157,2951.8,2950.9,0.00260612]
[1769126638685,0.94211987,2951.7,2950.9,0.00260612]
[1769126638887,0.14444157,2951.8,2950.9,0.00260612]
[1769126639086,0.94212,2951.7,2950.9,0.00260612]
[1769126639282,0.14444157,2951.8,2950.9,0.00260612]
[1769126639487,0.9419522,2951.7,2950.9,0.00260612]
[1769126639683,0.14444157,2951.8,2950.9,0.00260612]
[1769126639888,0.94195228,2951.7,2950.9,0.00260612]
[1769126640087,0.14444157,2951.8,2950.9,0.00260612]
[1769126640290,0.94192962,2951.7,2950.9,0.00260612]
[1769126640492,0.14444157,2951.8,2950.9,0.00260612]
[1769126640790,0.94193065,2951.7,2950.9,0.00260612]
[1769126640993,0.14444157,2951.8,2950.9,0.00260612]
[1769126641186,0.94184425,2951.7,2951.1,1.24174888]
[1769126641388,0.00507563,2952.1,2951.1,1.24174888]
[1769126641690,1.26298894,2952.0,2951.1,1.24174888]
[1769126641889,1.26298894,2951.9,2951.1,1.24174888]
[1769126642192,0.94187938,2951.8,2950.9,1.244355]
[1769126642393,0.94187938,2951.7,2950.9,1.244355]
[1769126642594,0.15059503,2952.1,2950.9,1.244355]
[1769126642794,1.26306125,2952.0,2950.9,1.244355]
[1769126642994,1.26306125,2951.9,2950.9,1.244355]
[1769126643194,0.94193326,2951.8,2950.9,1.244355]
[1769126643392,0.00507563,2952.1,2951.1,1.24682451]
[1769126643593,0.00507563,2952.1,2951.5,1.24174888]
[1769126644599,0.14585453,2953.3,2951.9,1.24174888]
[1769126644904,2.65097539,2953.2,2951.9,1.24174888]
[1769126645105,1.26337198,2953.1,2951.9,1.24174888]
[1769126645298,1.26337198,2953.0,2951.9,1.24174888]
[1769126645500,0.942175,2952.9,2951.9,1.24174888]
[1769126645802,0.942175,2952.8,2951.9,1.24174888]
[1769126646103,1.38760341,2953.2,2951.9,1.24174888]
[1769126646301,1.26333648,2953.1,2951.9,1.24174888]
[1769126646501,1.26333648,2953.0,2951.9,1.24174888]
[1769126646796,0.94214138,2952.9,2951.9,1.24174888]
[1769126646997,0.94214138,2952.8,2951.9,1.24174888]
[1769126647198,1.38760341,2953.2,2951.9,1.24174888]
[1769126647400,1.26330307,2953.1,2951.9,1.24174888]
[1769126647699,1.26330307,2953.0,2951.9,1.24174888]
[1769126648005,0.94212369,2952.9,2951.9,1.24174888]
[1769126648195,0.94212369,2952.8,2951.9,1.24174888]
[1769126648394,1.24174888,2952.4,2951.3,0.14560093]
[1769126648599,1.38760341,2952.6,2951.3,1.38734981]
[1769126648805,0.94279063,2952.5,2951.3,1.38734981]
[1769126648999,0.94279063,2952.4,2951.3,1.38734981]
[1769126649195,0.14585453,2952.6,2951.5,1.24174888]
[1769126649398,0.94283348,2952.5,2951.5,1.24174888]
[1769126649698,0.94283348,2952.4,2951.5,1.24174888]
[1769126650003,0.14585453,2952.6,2951.5,1.24174888]
[1769126650197,0.94284646,2952.5,2951.5,1.24174888]
[1769126650397,0.14585453,2952.6,2951.5,1.24174888]
[1769126650594,0.94290969,2952.5,2951.5,1.24174888]
[1769126650798,0.14585453,2952.6,2951.5,1.24174888]
[1769126651101,0.94291155,2952.5,2951.5,1.24174888]
[1769126651296,1.24174888,2952.8,2951.5,1.24174888]
[1769126651501,1.26425773,2952.7,2951.5,1.24174888]
[1769126651700,0.94298696,2952.6,2951.5,1.24174888]
[1769126651896,0.94298696,2952.5,2951.7,1.24174888]
[1769126652098,2.43724726,2953.5,2952.1,1.24174888]
[1769126652099,1.24174888,2953.4,2952.1,1.24174888]
[1769126652404,1.26411203,2953.3,2952.1,1.24174888]
[1769126652606,1.26411203,2953.2,2952.1,1.24174888]
[1769126652796,1.26411203,2953.1,2952.1,1.24174888]
[1769126653001,1.26411203,2953.0,2952.1,1.24174888]
[1769126653199,0.94286127,2952.9,2952.1,1.24174888]
[1769126653405,1.38760341,2953.4,2952.1,1.24174888]
[1769126653600,1.26401767,2953.3,2952.1,1.24174888]
[1769126653895,1.26401767,2953.2,2952.1,1.24174888]
[1769126654098,1.26401767,2953.1,2952.1,1.24174888]
[1769126654306,1.26401767,2953.0,2952.1,1.24174888]
[1769126654499,0.9428161,2952.9,2952.1,1.24174888]
[1769126654695,1.38760341,2953.4,2952.1,1.24174888]
[1769126654900,1.2639548,2953.3,2952.3,1.24174888]
[1769126655101,1.2639548,2953.2,2952.1,1.24174888]
[1769126655306,1.2639548,2953.1,2952.1,1.24174888]
[1769126655512,0.94276914,2953.0,2952.1,1.24174888]
[1769126655706,0.94276914,2952.9,2952.1,1.24174888]
[1769126655908,1.38760341,2953.4,2952.1,1.24174888]
[1769126656209,1.26381874,2953.3,2952.1,1.24174888]
[1769126656408,1.26379664,2953.2,2952.1,1.24174888]
[1769126656609,1.26379664,2953.1,2951.9,1.24174888]
[1769126656808,1.26379664,2953.0,2951.9,1.24174888]
[1769126657109,0.9426688,2952.9,2951.9,1.24174888]
[1769126657309,1.55706341,2953.4,2951.9,1.24174888]
[1769126657510,1.26365326,2953.3,2951.9,1.24174888]
[1769126657710,1.26365326,2953.2,2951.9,1.24174888]
[1769126657910,1.26365326,2953.1,2951.9,1.24174888]
[1769126658110,0.94254559,2953.0,2952.1,1.24174888]
[1769126658305,0.94254559,2952.9,2952.1,1.24174888]
[1769126658508,1.55706341,2953.4,2952.1,1.24174888]
[1769126658709,1.26347072,2953.3,2952.1,1.24174888]
[1769126659005,1.26347072,2953.2,2952.1,1.24174888]
[1769126659205,1.26347072,2953.1,2952.1,1.24174888]
[1769126659409,0.94240767,2953.0,2952.1,1.24174888]
[1769126659610,0.14585453,2953.3,2952.1,1.24174888]
[1769126659914,1.26337946,2953.2,2952.1,1.24174888]
[1769126660116,1.26337946,2953.1,2952.1,1.24174888]
[1769126660412,0.94233946,2953.0,2952.1,1.24174888]
[1769126660609,0.14585453,2953.3,2952.1,1.24174888]
[1769126660811,1.26332087,2953.2,2952.1,1.24174888]
[1769126661013,1.26332087,2953.1,2952.1,1.24174888]
[1769126661215,0.94229514,2953.0,2952.1,1.24174888]
[1769126661512,0.14585453,2953.3,2952.1,1.24174888]
[1769126661712,1.2632896,2953.2,2952.1,1.24174888]
[1769126662008,1.2632896,2953.1,2952.1,1.24174888]
[1769126662209,0.94227162,2953.0,2952.1,1.24174888]
[1769126662409,0.14585453,2953.3,2952.1,1.24174888]
[1769126662610,1.26328999,2953.2,2952.1,1.24174888]
[1769126662810,1.26328999,2953.1,2952.1,1.24174888]
[1769126663010,0.94227139,2953.0,2952.1,1.24174888]
[1769126663209,0.14585453,2953.3,2952.1,1.24174888]
[1769126663508,1.26331781,2953.2,2952.1,1.24174888]
[1769126663705,0.94229158,2953.1,2952.5,1.24174888]
[1769126663913,1.24174888,2953.4,2952.1,1.38734981]
[1769126664112,1.24174888,2953.2,2951.9,1.24174888]
[1769126664319,0.94224258,2953.1,2951.9,1.24174888]
[1769126664616,0.94224258,2953.1,2952.1,1.24174888]
[1769126664815,0.14469512,2953.3,2952.1,1.24174888]
[1769126665115,1.2632742,2953.2,2952.1,1.24174888]
[1769126665419,0.942253,2953.1,2952.1,1.24174888]
[1769126665716,0.14469512,2953.3,2952.1,1.24174888]
[1769126666016,1.26335105,2953.2,2952.1,1.24174888]
[1769126666313,0.94231004,2953.1,2952.3,1.24174888]
[1769126666615,0.17315806,2953.5,2952.3,1.24174888]
[1769126666913,1.26344755,2953.4,2952.4,0.00507563]
[1769126667113,1.26344755,2953.3,2952.4,0.00507563]
[1769126667316,0.94238234,2953.2,2952.4,0.00507563]
[1769126667515,0.17315806,2953.5,2952.4,0.00507563]
[1769126667716,1.26354095,2953.4,2952.4,0.00507563]
[1769126667910,1.26354095,2953.3,2952.4,0.00507563]
[1769126668215,0.94245169,2953.2,2952.4,0.00507563]
[1769126668414,0.17315806,2953.5,2952.4,0.00507563]
[1769126668615,1.26388347,2953.4,2952.4,0.00507563]
[1769126668912,1.26388347,2953.3,2952.4,0.00507563]
[1769126669112,0.94270649,2953.2,2952.4,0.00507563]
[1769126669303,0.94270649,2953.1,2952.4,0.00507563]
[1769126669508,0.17315806,2953.5,2952.4,0.00507563]
[1769126669705,1.26431251,2953.4,2952.4,0.00507563]
[1769126669905,1.26431251,2953.3,2952.4,0.00507563]
[1769126670107,0.94302555,2953.2,2952.4,0.00507563]
[1769126670305,0.94302555,2953.1,2952.4,0.00507563]
[1769126670515,0.17315806,2953.5,2952.4,0.00507563]
[1769126670712,1.26430419,2953.4,2952.4,0.00507563]
[1769126670912,1.26430419,2953.3,2952.4,0.00507563]
[1769126671113,0.94301954,2953.2,2952.4,0.00507563]
[1769126671312,0.94301954,2953.1,2952.4,0.00507563]
[1769126671507,0.17315806,2953.5,2952.4,0.00507563]
[1769126671508,0.14768359,2953.3,2952.4,0.00507563]
[1769126671713,2.65431012,2953.2,2952.4,0.00507563]
[1769126671914,1.26487765,2953.1,2952.4,0.00507563]
[1769126672118,0.94344572,2953.0,2952.4,0.00507563]
[1769126672311,0.94344572,2952.9,2952.4,0.00507563]
[1769126672511,1.38943247,2953.2,2952.4,0.00507563]
[1769126672707,1.26563258,2953.1,2952.4,0.00507563]
[1769126672911,1.26563258,2953.0,2952.4,0.00507563]
[1769126673113,0.94472017,2952.9,2952.4,0.00507563]
[1769126673317,0.00369806,2953.5,2952.4,0.00507563]
[1769126673519,1.26654949,2953.4,2952.4,0.00507563]
[1769126673816,1.26654949,2953.3,2952.4,0.00507563]
[1769126674017,1.26654949,2953.2,2952.4,0.00507563]
[1769126674213,0.94977507,2953.1,2952.7,1.24174888]
[1769126674418,0.00507563,2953.1,2952.7,1.24174888]
[1769126675113,0.00507563,2953.1,2952.5,1.24174888]
[1769126682129,0.00507563,2953.1,2952.4,0.00507563]
[1769126686326,0.94507796,2953.0,2952.4,0.00507563]
[1769126686526,0.00507563,2953.1,2952.4,0.00507563]
[1769126686727,0.94507805,2953.0,2952.4,0.00507563]
[1769126687025,0.00507563,2953.1,2952.4,0.00507563]
[1769126687226,0.94507805,2953.0,2952.4,0.00507563]
[1769126687425,0.00507563,2953.1,2952.4,0.00507563]
[1769126687629,0.94513401,2953.0,2952.4,0.00507563]
[1769126687925,0.00507563,2953.1,2952.4,0.00507563]
[1769126688124,0.94513409,2953.0,2952.4,0.00507563]
[1769126688324,0.00507563,2953.1,2952.4,0.00507563]
[1769126688526,0.94519798,2953.0,2952.4,0.00507563]
[1769126688720,0.00507563,2953.1,2952.4,0.00507563]
[1769126688920,0.94519802,2953.0,2952.4,0.00507563]
[1769126689121,0.00507563,2953.1,2952.4,0.00507563]
[1769126689329,0.94527133,2953.0,2952.4,0.00507563]
[1769126689529,0.00507563,2953.1,2952.4,0.00507563]
[1769126689828,0.94527139,2953.0,2952.4,0.00507563]
[1769126690029,0.00507563,2953.1,2952.4,0.00507563]
[1769126690232,0.94535701,2953.0,2952.4,0.00507563]
[1769126690530,0.94536883,2952.9,2952.4,0.00507563]
[1769126690730,0.00507563,2953.1,2952.4,0.00507563]
[1769126691031,1.26743471,2953.0,2952.4,0.00507563]
[1769126691331,0.94536892,2952.9,2952.4,0.00507563]
[1769126691632,0.00507563,2953.1,2952.4,0.00507563]
[1769126691833,1.2675605,2953.0,2952.4,0.00507563]
[1769126692130,0.94546301,2952.9,2952.4,0.00507563]
[1769126692330,0.00507563,2953.1,2952.4,0.00507563]
[1769126692531,1.26769851,2953.0,2952.4,0.00507563]
[1769126692728,0.94556575,2952.9,2952.4,0.00507563]
[1769126692930,0.00507563,2953.1,2952.4,0.00507563]
[1769126693134,1.26769853,2953.0,2952.4,0.00507563]
[1769126693341,0.94556574,2952.9,2952.4,0.00507563]
[1769126693528,0.00507563,2953.1,2952.4,0.00507563]
[1769126693731,1.26784773,2953.0,2952.4,0.00507563]
[1769126693937,0.94567661,2952.9,2952.4,0.00507563]
[1769126694238,0.00507563,2953.1,2952.4,0.00507563]
[1769126694439,0.00507563,2953.1,2952.4,0.15521173]
[1769126695942,0.00507563,2953.1,2952.4,0.00507563]
[1769126696739,0.94573252,2953.0,2952.4,0.00507563]
[1769126696940,0.94573252,2952.9,2952.4,0.00507563]
[1769126697142,0.94576362,2952.8,2952.4,0.00507563]
[1769126697340,0.9458309,2952.7,2951.6,0.3196961]
[1769126697640,0.15275922,2953.1,2951.7,0.1501361]
[1769126697939,1.26807538,2953.0,2951.7,0.1501361]
[1769126698134,1.26807538,2952.9,2951.7,0.1501361]
[1769126698334,1.26807538,2952.8,2951.7,0.1501361]
[1769126698536,0.94586204,2952.7,2951.7,0.1501361]
[1769126698738,0.94586204,2952.6,2951.7,0.1501361]
[1769126698941,0.15275922,2953.1,2951.7,0.1501361]
[1769126699140,1.26789883,2953.0,2951.7,0.1501361]
[1769126699337,1.26789883,2952.9,2951.7,0.1501361]
[1769126699537,1.26789883,2952.8,2951.7,0.1501361]
[1769126699737,0.94572771,2952.7,2951.7,0.1501361]
[1769126700040,0.00507563,2953.1,2951.7,0.1501361]